Cogmind - Beta 14 @@@ ROGUE MODE // 2024.12.21 @ 02:33:08 Player: abnormality Result: Destroyed by Y-45 Defender with Beam Rifle Performance ------------- Evolutions (1) 500 Regions Visited (3) 600 Robots Destroyed (34) 170 Value Destroyed (846) 846 Prototype IDs (5) 100 Alien Tech Used (0) 0 Bonus (-145) -145 TOTAL SCORE: 2071 Bonus ------- Follower Combat Kills 166 Friendly Fire -311 Cogmind --------- Core Integrity 0/400 Matter 266/300 Energy 87/100 System Corruption 0% Temperature Cool (63) Movement Walking (120) Location -9/Storage Parts ------- > --- POWER (1) -------- (None) > --- PROPULSION (4) --- Aluminum Leg Aluminum Leg Aluminum Leg > --- UTILITY (2) ------ Large Storage Unit > --- WEAPON (2) ------- Advanced Beam Cannon > --- INVENTORY (15) --- Light Ion Engine Aluminum Leg Large Storage Unit Seismic Detector Seismic Detector Propulsion Shielding Drone Bay (2/2) EM Pulse Gun Improved EM Shotgun Beam Cannon EMP Blaster Grenade Launcher Peak State ------------ > --- POWER ------------ Ion Engine > --- PROPULSION ------- Aluminum Leg Aluminum Leg Aluminum Leg Improved Aluminum Leg > --- UTILITY ---------- Large Storage Unit Sensor Array > --- WEAPON ----------- Advanced Beam Cannon Rocket Launcher > --- INVENTORY -------- Light Ion Engine Large Storage Unit Seismic Detector Propulsion Shielding EM Pulse Gun Improved EM Shotgun Beam Cannon Grenade Launcher [Rating: 14] Favorites ----------- Power Ion Engine Engine Ion Engine Propulsion Aluminum Leg Leg Aluminum Leg Utility Large Storage Unit Device Sensor Array Storage Large Storage Unit Weapon Rocket Launcher Energy Gun Improved EM Shotgun Energy Cannon Advanced Beam Cannon Launcher Rocket Launcher Build | -11 -10 -9 -9 ------- Run | Yrd Mat Mat Sto Slots Evolved 2 | . . 2 . Power . | . . . . Propulsion 2 | . . 2 . Utility . | . . . . Weapon . | . . . . Parts Attached 29 | 7 4 10 8 Power 3 | 1 . . 2 Engine 3 | 1 . . 2 Core . | . . . . Reactor . | . . . . Propulsion 8 | 2 . 4 2 Treads . | . . . . Leg 8 | 2 . 4 2 Wheel . | . . . . Hover . | . . . . Flight . | . . . . Utility 4 | 2 2 . . Device 2 | 1 1 . . Storage 2 | 1 1 . . Processor . | . . . . Hackware . | . . . . Protection . | . . . . Artifact . | . . . . Weapon 14 | 2 2 6 4 Energy Gun 5 | 2 1 2 . Energy Cannon 3 | . . 2 1 Ballistic Gun . | . . . . Ballistic Cannon . | . . . . Launcher 6 | . 1 2 3 Special Weapon . | . . . . Impact Weapon . | . . . . Slashing Weapon . | . . . . Piercing Weapon . | . . . . Special Melee Weapon . | . . . . Unidentified Prototypes 2 | . 1 1 . Parts Lost 9 | . . 4 5 Power 2 | . . . 2 Propulsion 3 | . . 2 1 Utility 1 | . . . 1 Weapon 3 | . . 2 1 Highest Loss Streak 3 | . . 2 3 To Critical Strikes . | . . . . Average Slot Usage (%) 91 | . 100 79 91 Engine 11 | . 14 11 9 Leg 30 | . 28 24 41 Device 11 | . 14 11 7 Storage 12 | . 14 11 11 Energy Gun 7 | . 14 4 . Energy Cannon 4 | . . 6 7 Launcher 12 | . 13 10 13 Peak Build Rating 14 | 7 11 14 14 Average Rating 10 | 4 10 10 12 On Entrance 8 | . 7 11 14 Naked Turns . | . . . . Heaviest Build 34 | 15 33 34 33 Greatest Support 43 | 20 20 43 43 Greatest Overweight (x) 3 | . 1 3 1 Average Overweight (x) . | . . 1 . Largest Inventory Capacity 15 | 8 15 15 15 Average Capacity 14 | 7 14 15 15 Most Carried 13 | 4 10 10 13 Average Carried 9 | 1 8 7 11 Final Capacity 15 | 8 15 15 15 Final Carried 12 | 2 10 10 12 Class Distribution -------------------- 69% | Mutant 19% | Scavenger-Mutant 11% | Commander-Mutant Dominant Class ---------------- Mutant | -10/Materials Mutant | -9/Materials Scavenger-Mutant | -9/Storage Resources | -11 -10 -9 -9 ----------- Run | Yrd Mat Mat Sto Matter Collected 759 | 210 14 255 280 Remotely . | . . . . Salvage Created 725 | 24 117 444 140 Parts 68 | 2 17 41 8 Haulers Intercepted 1 | . . 1 . Recyclers Shooed 1 | . . 1 . Parts Field Recycled . | . . . . Retrieved Matter . | . . . . Parts Self-Destructed . | . . . . Prevented . | . . . . Kills | -11 -10 -9 -9 ------- Run | Yrd Mat Mat Sto Combat Hostiles Destroyed 18 | . 3 12 3 Guns 3 | . 1 2 . Cannons 5 | . . 4 1 AOE 10 | . 2 6 2 Classes Destroyed 10 | 1 3 6 . Worker 2 | . . 2 . Builder 5 | . 4 1 . Tunneler 3 | 1 1 1 . Hauler 1 | . . 1 . Watcher 4 | . 3 . 1 Swarmer 5 | . 3 2 . Grunt 7 | . . 6 1 Brawler 1 | . . 1 . Duelist 1 | . . 1 . Sentry 5 | . . 2 3 Best Kill Streak 6 | 1 6 6 2 Combat Bots Only 3 | . 3 3 1 Max Kills in Single Turn 4 | 1 3 4 1 Gunslinging . | . . . . Exploded 1 | . 1 1 1 Melee . | . . . . Uniques/NPCs Destroyed . | . . . . Combat | -11 -10 -9 -9 -------- Run | Yrd Mat Mat Sto Hostile Shots Fired 79 | . 14 31 34 Missed 20 | . 4 4 12 Damage Taken 1361 | 10 268 566 517 Core 431 | . 29 260 142 Absorbed by Shields . | . . . . Core Remaining (%) 94 | 100 88 . . Volleys Fired 43 | 5 7 18 13 Largest 2 | 2 2 2 2 Hottest 101 | 90 78 101 101 Shots Fired 80 | 10 13 32 25 Gun 23 | 10 6 7 . Cannon 24 | . . 11 13 Launcher 33 | . 7 14 12 Special . | . . . . Kinetic . | . . . . Thermal 29 | 5 . 11 13 Explosive 32 | . 7 13 12 Electromagnetic 19 | 5 6 8 . Robot Hit Streak 10 | 5 4 10 9 Robot Miss Streak 3 | 1 2 3 2 Penetration Max . | . . . . Secondary Targets . | . . . . Shots Hit Robots 47 | 8 7 16 16 Core Hits 54 | 1 12 25 16 Critical Kills . | . . . . Critical Parts Destroyed . | . . . . Critical Strikes . | . . . . Melee Attacks . | . . . . Impact . | . . . . Slashing . | . . . . Piercing . | . . . . Sneak Attacks . | . . . . Combat Hostiles . | . . . . Follow-up Attacks . | . . . . Damage Inflicted 2810 | 134 720 1273 683 Guns 247 | 91 60 96 . Cannons 300 | . . 136 164 Explosions 2263 | 43 660 1041 519 Melee . | . . . . Ramming . | . . . . Kinetic . | . . . . Thermal 750 | 94 . 492 164 Explosive 1851 | . 660 672 519 Electromagnetic 209 | 40 60 109 . Impact . | . . . . Slashing . | . . . . Piercing . | . . . . Highest Corruption . | . . . . Average Corruption . | . . . . Corruption Purged . | . . . . Corruption Blocked . | . . . . Overload Shots . | . . . . Overflow Damage 236 | 19 19 124 74 Projectiles . | . . . . Explosions 236 | 19 19 124 74 Melee . | . . . . Knockbacks . | . . . . Impact . | . . . . Kinetic . | . . . . Secondary . | . . . . Self-Inflicted Damage 664 | 10 198 259 197 Shots 22 | 1 6 6 9 Rammed . | . . . . Targets Rammed . | . . . . Kicked . | . . . . Crushed . | . . . . Highest Temperature 191 | 162 54 191 135 Average Temperature 50 | 80 21 55 40 Received Heat Transfer 195 | . . 108 87 Siege Activations . | . . . . Robots Corrupted . | . . . . Combat Hostiles . | . . . . Parts Fried 1 | . . 1 . Impact Corruptions . | . . . . Robots Melted . | . . . . Combat Hostiles . | . . . . Parts Melted . | . . . . Heat Transferred 1003 | 148 . 559 296 Parts Sabotaged . | . . . . Parts Stolen . | . . . . Parts Stripped . | . . . . Power Chain Reactions 2 | 1 . 1 . Alert | -11 -10 -9 -9 ------- Run | Yrd Mat Mat Sto Peak Influence 357 | 5 215 317 357 Initial 121 | . 3 39 121 Average 124 | . 73 149 201 Maximum Alert Level 1 | . 1 1 1 Low Security (%) 70 | 100 75 64 63 Level 1 29 | . 24 35 36 Level 2 . | . . . . Level 3 . | . . . . Level 4 . | . . . . Level 5 . | . . . . High Security . | . . . . Max Security . | . . . . Squads Dispatched 3 | . 1 1 1 Investigation 1 | . . . 1 Extermination . | . . . . Reinforcement 2 | . 1 1 . Assault . | . . . . Garrison . | . . . . Intercept . | . . . . Searches Triggered . | . . . . Construction Impeded . | . . . . Haulers Reinforced . | . . . . Active Scanning Responses . | . . . . Cargo Convoy Interrupts . | . . . . Stealth | -11 -10 -9 -9 --------- Run | Yrd Mat Mat Sto Distress Signals 1 | . . . 1 Communications Jammed . | . . . . Distress Signals . | . . . . Times Spotted 37 | . 8 15 14 Peak Tracking Total 4 | . 4 3 4 Tactical Retreats 4 | . 1 3 . Traps | -11 -10 -9 -9 ------- Run | Yrd Mat Mat Sto Traps Triggered 1 | . . . 1 Indirectly . | . . . . Trap Hack Attempts . | . . . . Triggered . | . . . . Disarmed . | . . . . Reprogrammed . | . . . . Reused . | . . . . Traps Extracted . | . . . . Installed . | . . . . Triggered . | . . . . Machines | -11 -10 -9 -9 ---------- Run | Yrd Mat Mat Sto Machines Disabled 17 | . 3 6 8 Max in Single Turn 4 | . 1 4 2 Machines Repaired . | . . . . Machines Dismantled . | . . . . Machines Sabotaged . | . . . . Overloaded Fab Kills . | . . . . Hacking | -11 -10 -9 -9 --------- Run | Yrd Mat Mat Sto Machines Accessed 8 | . 3 2 3 Terminals 7 | . 3 1 3 Fabricators . | . . . . Repair Stations . | . . . . Recycling Units 1 | . . 1 . Scanalyzers . | . . . . Garrison Access . | . . . . Total Hacks 13 | . 6 2 5 Successful 7 | . 2 2 3 Failed 6 | . 4 . 2 Catastrophic . | . . . . Database Lockouts . | . . . . Manual . | . . . . Terminals 12 | . 6 1 5 Fabricators . | . . . . Repair Stations . | . . . . Recycling Units 1 | . . 1 . Scanalyzers . | . . . . Garrison Access . | . . . . Terminal Hacks 6 | . 2 1 3 Prototype ID Bank 1 | . . . 1 Open Door 2 | . . . 2 Unreport Threat 1 | . . 1 . Locate Traps 1 | . 1 . . Zone Layout 1 | . 1 . . Fabricator Hacks . | . . . . Repair Station Hacks . | . . . . Recycling Unit Hacks 1 | . . 1 . Report Inventory 1 | . . 1 . Scanalyzer . | . . . . Garrison Access Hacks . | . . . . Unauthorized Hacks . | . . . . Terminals . | . . . . Fabricators . | . . . . Repair Stations . | . . . . Recycling Units . | . . . . Scanalyzers . | . . . . Garrison Access . | . . . . Data Cores Recovered . | . . . . Used . | . . . . Hacking Detections 5 | . 3 . 2 Full Trace Events 3 | . 2 . 1 Feedback Events . | . . . . Feedback Blocked . | . . . . Robot Schematics Acquired . | . . . . Robots Built . | . . . . Authchips . | . . . . Time . | . . . . Total Robot Build Rating . | . . . . Part Schematics Acquired . | . . . . Parts Built . | . . . . Authchips . | . . . . Time . | . . . . Total Part Build Rating . | . . . . Parts Repaired . | . . . . Time . | . . . . Parts Recycled . | . . . . Recycled Matter . | . . . . Retrieved Matter . | . . . . Retrieved Components . | . . . . Parts Scanalyzed . | . . . . Part Schematics Acquired . | . . . . Parts Damaged . | . . . . Bothacking | -11 -10 -9 -9 ------------ Run | Yrd Mat Mat Sto Used RIF Installer . | . . . . Robots Hacked . | . . . . Non-combat . | . . . . Combat . | . . . . Robot Hacks Applied . | . . . . Relay Couplers Released . | . . . . Fabnet Peak Effective % . | . . . . Robots Rewired . | . . . . Allies Hacked . | . . . . Hacks Repelled . | . . . . Allies | -11 -10 -9 -9 -------- Run | Yrd Mat Mat Sto Total Allies 10 | . . . 10 Largest Group 10 | . . . 10 Highest-Rated Group 88 | . . . 88 Highest-Rated Ally 16 | . . . 16 Total Orders . | . . . . Ally Attacks 47 | . . . 47 Total Damage 458 | . . . 458 Kills 8 | . . . 8 Allies Corrupted . | . . . . Allies Melted . | . . . . Intel | -11 -10 -9 -9 ------- Run | Yrd Mat Mat Sto Robot Analysis Total . | . . . . Derelict Logs Recovered . | . . . . Drone Launches . | . . . . Drone Recoveries . | . . . . Exploration | -11 -10 -9 -9 ------------- Run | Yrd Mat Mat Sto Turns Passed 1981 | 68 858 544 511 Spaces Moved 870 | 38 284 232 316 Core 11 | 11 . . . Treads . | . . . . Legs 859 | 27 284 232 316 Wheels . | . . . . Hover . | . . . . Flight . | . . . . Fastest Speed 50 | 50 120 120 120 Average Speed 164 | 99 188 192 129 Slowest Speed 330 | 120 190 330 190 Overloaded Moves . | . . . . Propulsion Burnouts . | . . . . Robots Hopped . | . . . . Cave-ins Triggered . | . . . . Exploration Rate (%) 33 | 4 57 23 50 Regions Visited 3 Branch Regions 1 Pre-discovered Areas . | . . . . Known Exits Taken . | . . . . Unknown Exits Taken 3 | 1 1 1 . Scrap Searched . | . . . . Spaces Dug 3 | . . . 3 Terrain Destroyed 301 | . 89 130 82 Melee . | . . . . Projectile . | . . . . AOE 301 | . 89 130 82 Terrain Rammed . | . . . . Walls Destroyed . | . . . . Machines Disabled . | . . . . Actions | -11 -10 -9 -9 --------- Run | Yrd Mat Mat Sto Total 1343 | 58 594 297 394 Wait 365 | . 289 27 49 Move 867 | 37 283 231 316 Hop . | . . . . Pick Up 32 | 9 9 8 6 Fast Attach . | . . . . Attach 21 | 7 1 7 6 Detach 4 | . 1 1 2 Swap 8 | . 3 3 2 Drop 3 | . 1 2 . Fire 43 | 5 7 18 13 Melee . | . . . . Ram . | . . . . Kick . | . . . . Crush . | . . . . Escape Stasis . | . . . . Rewire . | . . . . Trap . | . . . . Miscellaneous . | . . . . Route ------- -11/Scrapyard -10/Materials (discovered 4 exits: *Mat x2 / [*Min x2]) -9/Materials (discovered 2 exits: [*Mat] / *Sto) -9/Storage History --------- Turn | Location | Event 16 | -11/Scrapyard | Discovered new exit (range 15) 69 | -11/Scrapyard | Entered Materials 195 | -10/Materials | Discovered new exit (range 13) 311 | -10/Materials | Build established: Mutant 397 | -10/Materials | Discovered new exit (range 8) 895 | -10/Materials | Discovered new exit (range 14) 905 | -10/Materials | Discovered new exit (range 8) 927 | -10/Materials | Entered another Materials area 927 | -9/Materials | Evolved 2 slots: Propulsion x2 1337 | -9/Materials | Core integrity fell below 50% 1400 | -9/Materials | Discovered new exit (range 16) 1420 | -9/Materials | Discovered new exit (range 16) 1471 | -9/Materials | Entered Storage 1592 | -9/Storage | Assisted by bots powering up and referring to "LRC-V3" 1873 | -9/Storage | Core integrity fell below 20% 1910 | -9/Storage | Lost 4 allies 1982 | -9/Storage | Destroyed by Y-45 Defender with Beam Rifle Last Messages --------------- 01905_ Terminal disabled. 01905_ Ion Engine destroyed. 01905_ Destroyed Ion Engine. 01908_ Y-45 Defender destroyed. 01908_ Transfer Shaft disabled. 01915_ Acquired 16 matter. 01918_ Acquired 44 matter. 01934_ Y-45 Defender destroyed. 01934_ Terminal disabled. 01934_ K-01 Serf collects debris. 01935_ U-05 Engineer lays Concrete. 01936_ U-05 Engineer builds a Wall. 01937_ K-01 Serf collects debris. 01976_ Terminal disabled. 01976_ Aluminum Leg destroyed. 01976_ Destroyed Aluminum Leg. 01979_ Rocket Launcher destroyed. 01979_ Destroyed Rocket Launcher. 01979_ Ion Engine destroyed. 01979_ Destroyed Ion Engine. Map ----- +----------------------------------------------------+ | | | | | | | | | | | | | ?????????????????????????????????????????????????? | | ?????????????????????????????????????????????????? | | ?????????????????????????????????????????????????? | | ???????????????????????????#?????????#######?##### | | ??????????????????????????? ?????????# ## | | ??????????????????????????? ?????????# """ ## | | ??????????????????????????? ?##??????# """ ## """ | | ??????????????????????????# # ??????# "" [=# """ | | ?????????????????????#+#### # ??????# = """ | | ?????????????????????# # # "??????# """!! | | ?????????????????????# # + "??????# "" [ | | ?????????????????????# # # "??????# "" ! | | ?????????????????????# # # "??????# # ! | | ?????????????????????# # + """"???# """ # | | ?????????????????????# # # """ # """ ## | | ?????????????????????# # # # """ ## | | ?????????????????????# ###+#### ####/# | | ?????????????????????# # ####+##### | | ?????????????????+###### # ^ *%= | | ?????????? a @ Y # | | ???????????????# #### " | | ??????????????????????## "" ###### | | ???????????????????????# T" ######## ##### | | ???????????????????????# ""##??# # | | ???????????????????????# ""#???# """ # | | ???????????????????????# ###???? """ # | | ???????????????????????#a## #?????# """ | | ??????????????????????? ?# #?????# | | ??????????????????????? ?? ?????+ # | | ??????????????????????? ??##?????# # | | ??????????????????????? ?????????# ########### | | ??????????????????????? ?????????#??## ####### | | ?????????????????????? ????????????# = # | | ??????????????????????###????????????+ """""%[/ | | ?????????????????????????????????????# """""**# | | ?????????????????????????????????????# """""%%# | | ?????????????????????????????????????# *==+ | | ?????????????????????????????????????# """"" # | | ?????????????????????????????????????# """"" # | | ?????????????????????????????????????# """"" # | | ?????????????????????????????????????# # % | | ?????????????????????????????????????###+###### = | | ????????????????????????????????????## # %= | | ????????????????????????????????????# # | +----------------------------------------------------+ Best States ------------- Heat Dissipation 28 Energy Generation 10 Energy Capacity 250 Matter Stores 300 Matter Capacity 300 Sight Range 16 Robot Scan Range 14 Terrain Scan Density 10 Evasion (%) 55 Item Schematics ----------------- None Robot Schematics ------------------ None Fabricated ------------ Nothing Alien Tech Used ----------------- None Achievements -------------- None Challenges ------------ None Game ------ Seed NetworkThermicDetonator Manual? 0 Play Time 00:17:56 Cumulative 12.0 hours Start 2024.12.21 @ 02:17:07 End 2024.12.21 @ 02:33:08 Sessions 1 Manual Loads 0 Difficulty Rogue Special Mode None Game No. 63 Rogue 63 Adventurer 0 Explorer 0 Win Type - Total 0 Types 0/0/0/0/0/0/0/0/0 Lore% 11 Gallery% 16 Achievement% 20 Wizard Run 0 Options --------- Layout 0 ASCII 0 Keyboard 0 Movement Mouse Keybinds 0 Fullscreen 1 Font 18/SmallcapsGlow Map View 38x25 Zoom Use 98% Tactical HUD 1 Map Filters NONE Filters NONE Steam 1 RUN: 923e8586-80e6-4d59-9eff-18b7c77c92c5